Cogmind - Beta 15 @@@ ROGUE MODE // 2025.07.10 @ 01:21:16 Player: cptwinky Result: Destroyed by G-67 Veteran with Plasma Rifle Performance ------------- Evolutions (5) 2500 Regions Visited (27) 5400 Robots Destroyed (386) 1930 Value Destroyed (14651) 14651 Prototype IDs (58) 1160 Alien Tech Used (0) 0 Bonus (7412) 7412 TOTAL SCORE: 33053 Bonus ------- High Alert Combat Kills 1266 Follower Combat Kills 3219 Awakened Behemoth Slayer 1000 Entered Garrisons 400 Network Hubs Disabled 600 Met Data Miner 300 Met Imprinter 300 Was Imprinted 300 Acquired ECA 300 Built Enhanced Grunts 300 A7 Reached Mainframe 300 Met R17 at Cetus 500 Friendly Fire -1373 Cogmind --------- Core Integrity 0/1000 Matter 205/300 Energy 34/150 System Corruption 13% Temperature Cool (31) Movement Hovering (68) Location -5/Hub_04(d) Parts ------- > --- POWER (2) -------- Micro Fission Core > --- PROPULSION (5) --- Combat Gravmag System Combat Gravmag System Combat Gravmag System Combat Gravmag System Combat Gravmag System > --- UTILITY (6) ------ Advanced Sensor Array Advanced Signal Interpreter Advanced Hacking Suite Advanced Hacking Suite Improved System Shield > --- WEAPON (4) ------- (None) > --- INVENTORY (5) ---- Improved Transmission Jammer Medium Regenerative Plating Advanced Variable Charge Gun Tiamat Missile Launcher CR-A16's Behemoth Slayer Peak State ------------ > --- POWER ------------ Reinforced Deuterium Engine Antimatter Reactor > --- PROPULSION ------- Flexi-carbon Leg Thunder Leg Advanced Myomer Leg Advanced Myomer Leg Advanced Myomer Leg > --- UTILITY ---------- Experimental Heat Sink Improved Coolant Injector High-capacity Storage Unit Advanced Signal Interpreter Centrium Medium Armor Plating Medium Regenerative Plating > --- WEAPON ----------- Cooled Plasma Rifle Cooled Plasma Rifle Cooled Plasma Rifle CR-A16's Behemoth Slayer > --- INVENTORY -------- Micro Fission Core Improved Cooling System Zionite Biocell Makeshift Trap Scanner Advanced Sensor Array Improved Transmission Jammer Centrium Medium Armor Plating Advanced Hacking Suite Long-range Tractor Beam Hacking Drone Bay Thermic Laser Thermic Laser Thermic Laser Advanced Variable Charge Gun Neutron Cannon Tiamat Missile Launcher Tiamat Missile Launcher Makeshift Laser Shovel Improved Plasma Cutter PL-3XN's Ring of Power [Rating: 123] Favorites ----------- Power Cooled Ion Engine Engine Cooled Ion Engine Power Core Micro Fission Core Reactor Cold Fusion Reactor Propulsion Improved Titanium Leg Treads Light Treads Leg Improved Titanium Leg Hover Unit Combat Gravmag System Utility Improved Cooling System Device Improved Cooling System Storage Large Storage Unit Processor Advanced Targeting Computer Hackware Hacking Suite Protection Powered Armor Weapon Cooled Plasma Rifle Energy Gun Cooled Plasma Rifle Energy Cannon Neutron Cannon Ballistic Gun Improved Assault Rifle Ballistic Cannon Enhanced Gauss Cannon Launcher Tiamat Missile Launcher Special Weapon Mining Laser Impact Weapon Heavy Flail Slashing Weapon Power Sword Piercing Weapon CR-A16's Behemoth Slayer Special Melee Weapon Improved Datajack Build | -11 -10 -10 -9 -9 -8 -8 -8 -8 -7 -7 -7 -7 -7 -7 -6 -6 -6 -6 -6 -6 -6 -5 -5 -5 -5 -5 -5 ------- Run | Yrd Mat Min Mat Sto Mat Gar Mat Gar Fac Was Fac Low Low Zio Pro Fac Was Fac Low Low Dat Pro Fac Ext Cet Arc Hub Slots Evolved 10 | . . . 2 . 2 . . . 2 . . . . . . 2 . . . . . . 2 . . . . Power 1 | . . . . . . . . . . . . . . . . 1 . . . . . . . . . . . Propulsion 3 | . . . 1 . . . . . 1 . . . . . . 1 . . . . . . . . . . . Utility 4 | . . . 1 . 1 . . . 1 . . . . . . . . . . . . . 1 . . . . Weapon 2 | . . . . . 1 . . . . . . . . . . . . . . . . . 1 . . . . Parts Attached 269 | 6 9 5 19 22 21 . 12 3 17 5 18 1 7 4 8 10 . 35 7 2 . 5 8 10 11 4 20 Power 25 | 1 1 . 2 3 2 . . . 1 . . . . . 2 3 . . 3 1 . . 1 1 1 . 3 Engine 16 | 1 1 . 2 3 2 . . . 1 . . . . . 2 1 . . 2 . . . . 1 . . . Core 3 | . . . . . . . . . . . . . . . . . . . . 1 . . 1 . . . 1 Reactor 6 | . . . . . . . . . . . . . . . . 2 . . 1 . . . . . 1 . 2 Propulsion 73 | 2 1 1 7 6 6 . 3 1 9 2 4 . . 1 3 2 . 13 . . . 1 . 3 . 1 7 Treads 34 | 2 1 1 7 6 6 . 3 1 5 . 1 . . . 1 . . . . . . . . . . . . Leg 34 | . . . . . . . . . 4 2 3 . . 1 2 2 . 13 . . . 1 . 3 . 1 2 Wheel . | . . . . . . . . . . . . . . . . . . . . . . . . . . . . Hover 5 | . . . . . . . . . . . . . . . . . . . . . . . . . . . 5 Flight . | . . . . . . . . . . . . . . . . . . . . . . . . . . . . Utility 93 | 1 3 1 6 3 6 . 4 1 5 1 7 1 5 3 1 3 . 11 2 . . 3 4 6 7 1 8 Device 33 | . 2 1 3 . 3 . 1 1 2 . 1 . . 3 1 . . 5 1 . . 1 2 1 1 1 3 Storage 14 | 1 1 . . . 1 . . . 1 . 3 . 2 . . 2 . 1 . . . 1 . . 1 . . Processor 14 | . . . . . 1 . 1 . . . 3 . . . . . . 3 1 . . . . 3 1 . 1 Hackware 5 | . . . . . . . . . 1 . . . 1 . . . . . . . . . . . . . 3 Protection 27 | . . . 3 3 1 . 2 . 1 1 . 1 2 . . 1 . 2 . . . 1 2 2 4 . 1 Artifact . | . . . . . . . . . . . . . . . . . . . . . . . . . . . . Weapon 78 | 2 4 3 4 10 7 . 5 1 2 2 7 . 2 . 2 2 . 11 2 1 . 1 3 . 3 2 2 Energy Gun 50 | 2 4 2 2 7 3 . 4 1 1 2 6 . 1 . . 2 . 5 . 1 . 1 2 . 2 1 1 Energy Cannon 5 | . . . . . . . . . . . . . . . 1 . . 2 1 . . . 1 . . . . Ballistic Gun 3 | . . . 1 1 . . . . . . . . . . . . . 1 . . . . . . . . . Ballistic Cannon 1 | . . . . . . . . . . . . . . . . . . . . . . . . . . . 1 Launcher 6 | . . . 1 . 1 . . . . . 1 . . . . . . 2 1 . . . . . . . . Special Weapon 3 | . . 1 . 1 . . . . . . . . 1 . . . . . . . . . . . . . . Impact Weapon 2 | . . . . 1 1 . . . . . . . . . . . . . . . . . . . . . . Slashing Weapon 2 | . . . . . 1 . . . 1 . . . . . . . . . . . . . . . . . . Piercing Weapon 3 | . . . . . . . . . . . . . . . 1 . . 1 . . . . . . 1 . . Special Melee Weapon 3 | . . . . . 1 . 1 . . . . . . . . . . . . . . . . . . 1 . Unidentified Prototypes 34 | . . 1 2 4 1 . 1 . . . 2 . 1 2 . 3 . 8 . . . . . 1 6 1 1 Parts Lost 30 | . . . 2 2 . . 1 . . 2 1 . 1 . 1 . . 2 1 1 . 2 . 1 1 . 12 Power 3 | . . . . . . . . . . . . . . . . . . . 1 1 . . . . . . 1 Propulsion 7 | . . . . 1 . . . . . . . . . . 1 . . . . . . 1 . . . . 4 Utility 13 | . . . 2 1 . . 1 . . 1 1 . 1 . . . . 1 . . . 1 . 1 1 . 2 Weapon 7 | . . . . . . . . . . 1 . . . . . . . 1 . . . . . . . . 5 Highest Loss Streak 11 | . . . 2 1 . . 1 . . 2 1 . 1 . 1 . . 1 1 1 . 1 . 1 1 . 11 To Critical Strikes 1 | . . . . . . . . . . . . . . . . . . 1 . . . . . . . . . Average Backups 14 | 3 13 14 14 14 14 15 15 14 14 7 8 9 10 13 14 14 14 14 13 13 14 16 18 18 18 19 18 Power . | . . . 1 1 1 1 1 1 1 . . 1 1 1 1 . 1 1 . . . . . 1 1 1 . Propulsion . | 1 4 1 . . 1 2 2 1 1 . . . . . . . 1 . . . 1 . . . . . . Utility 6 | . 1 4 4 4 5 6 6 6 4 2 2 3 2 5 7 8 7 8 7 7 7 8 8 8 8 9 8 Weapon 5 | 1 6 8 7 6 5 4 4 4 6 4 4 5 4 4 4 4 4 3 5 5 5 5 6 7 7 7 6 Tool/Special . | . . . . . . . . . . . . . . . . . . . . . . . . . . . . Unused Backups 56 | . 11 . 5 2 3 . 1 . 4 5 3 . 1 4 2 3 . 3 . . . 1 1 1 1 . 5 Power 4 | . . . 1 . . . . . 2 . . . . . . . . . . . . . . . . . 1 Propulsion 9 | . 5 . 1 . . . . . 1 1 1 . . . . . . . . . . . . . . . . Utility 19 | . . . 1 1 1 . 1 . . 1 1 . 1 2 1 3 . 2 . . . . 1 1 . . 2 Weapon 21 | . 6 . 2 1 1 . . . 1 3 1 . . 2 . . . 1 . . . 1 . . 1 . 1 Tool/Special 3 | . . . . . 1 . . . . . . . . . 1 . . . . . . . . . . . 1 Average Slot Usage (%) 97 | . 96 100 99 99 95 100 97 100 99 85 99 100 94 83 89 94 100 99 99 99 84 99 99 99 98 99 98 Engine 6 | . 14 14 11 11 9 9 9 9 6 7 7 7 7 7 7 7 . . . . . . . 1 5 5 4 Reactor 2 | . . . . . . . . . . . . . . . . 5 13 13 12 8 6 6 5 3 . . 2 Treads 10 | . 28 28 33 33 27 27 27 27 24 . . . . . 1 . . . . . . . . . . . . Leg 19 | . . . . . . . . . 5 25 30 30 26 23 26 32 33 33 33 33 33 33 29 29 29 29 28 Device 9 | . 10 14 10 11 9 9 9 9 12 15 14 6 6 7 7 6 6 12 6 6 6 5 10 12 9 10 10 Storage 7 | . 14 14 11 11 9 9 9 9 7 2 6 7 7 7 7 6 6 6 6 6 6 6 5 5 5 5 4 Processor 6 | . . . . . 6 9 6 9 7 7 7 15 7 7 7 6 6 6 13 13 13 13 6 4 5 5 5 Protection 8 | . . . 10 11 9 9 8 9 7 5 6 7 12 7 7 7 13 6 6 6 6 6 9 11 11 11 10 Energy Gun 21 | . 28 25 21 20 24 22 25 26 22 14 19 22 22 22 22 20 20 19 19 19 4 19 22 22 22 21 19 Peak Build Rating 123 | 6 9 17 18 24 33 33 39 41 52 53 58 56 56 62 61 72 72 94 95 93 91 93 110 113 118 118 123 Average Rating 60 | 5 7 9 15 20 30 33 36 40 47 45 54 55 53 51 57 69 72 76 93 91 73 91 106 106 110 112 115 On Entrance 58 | . 6 9 11 18 23 33 33 39 41 52 50 55 55 52 55 61 72 72 94 93 91 91 93 107 102 117 111 Naked Turns . | . . . . . . . . . . . . . . . . . . . . . . . . . . . . Heaviest Build 106 | 13 29 32 38 40 45 44 50 47 53 55 49 51 63 63 73 85 76 80 73 69 62 82 99 103 98 97 106 Greatest Support 133 | 40 40 40 60 66 69 60 62 64 88 78 85 65 65 75 80 100 97 122 122 122 122 126 126 126 125 125 133 Greatest Overweight (x) 1 | . . . . . . . . 1 . . . . 1 1 1 . . . . . . . . . . . 1 Average Overweight (x) . | . . . . . . . . . . . . . . . . . . . . . . . . . . . . Largest Inventory Capacity 20 | 8 15 15 15 15 15 15 15 15 15 15 10 10 15 15 15 15 15 15 15 15 15 20 20 20 20 20 20 Average Capacity 14 | 7 14 15 15 15 15 15 15 15 15 7 8 10 10 15 15 15 15 15 15 15 15 18 20 20 20 20 19 Most Carried 20 | 6 15 15 15 15 15 15 15 15 15 15 10 10 13 15 15 15 15 15 15 15 15 19 20 20 20 20 20 Average Carried 14 | 3 13 14 14 14 14 15 14 14 14 7 8 9 10 13 14 14 15 14 14 14 15 17 19 19 19 19 19 Final Capacity 20 | 8 15 15 15 15 15 15 15 15 15 5 10 10 15 15 15 15 15 15 15 15 15 20 20 20 20 20 5 Final Carried 20 | 6 13 14 15 15 15 15 15 15 15 5 9 10 13 15 15 15 15 15 14 15 15 19 20 19 20 20 5 Class Distribution -------------------- 30% | Gunner 19% | Tank 16% | Mutant 7% | Derelict-Gunner 7% | Commander-Tank 6% | Scavenger-Mutant 5% | Scavenger-Tank 3% | Pyromaniac-Tank Dominant Class ---------------- Mutant | -10/Materials Mutant | -10/Mines Scavenger-Mutant | -9/Materials Scavenger-Mutant | -9/Storage Gunner | -8/Materials Gunner | -8/Garrison Gunner | -8/Materials Gunner | -8/Garrison Tank | -7/Factory Mutant | -7/Waste Tank | -7/Factory Skirmisher | -7/Lower Caves Tank | -7/Lower Caves Gunner | -7/Zion Derelict-Gunner | -6/Proximity Caves Derelict-Gunner | -6/Factory Tank | -6/Waste Tank | -6/Factory Gunner | -6/Lower Caves Gunner | -6/Lower Caves Mutant | -6/Data Miner Gunner | -5/Proximity Caves Pyromaniac-Tank | -5/Factory Pyromaniac-Tank | -5/Extension Commander-Tank | -5/Cetus Commander-Tank | -5/Archives Scavenger-Tank | -5/Hub_04(d) Resources | -11 -10 -10 -9 -9 -8 -8 -8 -8 -7 -7 -7 -7 -7 -7 -6 -6 -6 -6 -6 -6 -6 -5 -5 -5 -5 -5 -5 ----------- Run | Yrd Mat Min Mat Sto Mat Gar Mat Gar Fac Was Fac Low Low Zio Pro Fac Was Fac Low Low Dat Pro Fac Ext Cet Arc Hub Matter Collected 6217 | 246 209 124 291 557 328 195 214 128 302 70 267 175 247 67 176 165 . 631 410 254 . 147 251 278 195 100 190 Remotely . | . . . . . . . . . . . . . . . . . . . . . . . . . . . . Salvage Created 15939 | 43 346 117 1076 1066 1081 759 1320 824 811 186 1351 138 380 . 150 983 . 1898 676 274 . 342 240 756 318 39 765 Parts 695 | 5 20 6 66 60 57 42 60 36 38 . 50 3 7 . 11 33 . 88 19 15 . 11 13 17 16 2 20 Haulers Intercepted 33 | . 2 . 4 5 5 . 3 . 3 . 4 . . . . 3 . 4 . . . . . . . . . Recyclers Shooed 6 | 1 . . . . . . 1 . 1 . 1 . 1 . . . . 1 . . . . . . . . . Parts Field Recycled . | . . . . . . . . . . . . . . . . . . . . . . . . . . . . Retrieved Matter . | . . . . . . . . . . . . . . . . . . . . . . . . . . . . Parts Self-Destructed 65 | . . . . . . . . . . . . 9 4 4 20 . . . 9 12 . 7 . . . . . Prevented 5 | . . . . . . . . . . . . . . . 5 . . . . . . . . . . . . Kills | -11 -10 -10 -9 -9 -8 -8 -8 -8 -7 -7 -7 -7 -7 -7 -6 -6 -6 -6 -6 -6 -6 -5 -5 -5 -5 -5 -5 ------- Run | Yrd Mat Min Mat Sto Mat Gar Mat Gar Fac Was Fac Low Low Zio Pro Fac Was Fac Low Low Dat Pro Fac Ext Cet Arc Hub Combat Hostiles Destroyed 301 | . 8 2 23 24 21 23 22 17 12 1 21 5 2 . 4 14 . 40 15 11 . 9 3 10 3 . 11 Melee 2 | . . . . . . 1 . . . . . . . . 1 . . . . . . . . . . . . Guns 216 | . 8 2 17 17 16 16 20 16 7 . 19 3 2 . . 13 . 27 7 5 . 5 . 7 3 . 6 AOE 54 | . . . 6 7 3 6 2 . 2 . . 2 . . 2 . . 10 5 6 . 3 . . . . . Classes Destroyed 23 | 1 4 1 2 3 . 3 1 . 1 1 . . . . 1 1 . 2 1 . . . . . . . 1 Worker 12 | . 1 . 1 2 1 . 1 . 1 . . . . . . 2 . 2 . . . . . . . . 1 Builder 7 | . . . . 1 1 . 2 . . . . . . . . 1 . 2 . . . . . . . . . Tunneler 4 | 2 . . 1 . . . . . . . . . . . . . . 1 . . . . . . . . . Hauler 33 | . 2 . 4 5 5 . 3 . 3 . 4 . . . . 3 . 4 . . . . . . . . . Recycler 12 | . . 1 2 1 1 . 2 . 1 . 3 . . . . . . . . . . . . 1 . . . Mechanic 1 | . . . . . . . . . 1 . . . . . . . . . . . . . . . . . . Operator 8 | . . . . 1 2 . 1 . 1 . 1 . . . . . . 1 . . . . . . . 1 . Watcher 6 | . . . 2 1 1 . . . . . . . . . . . . . . . . . . . 1 . 1 Swarmer 86 | . 3 . 6 9 10 9 5 . 3 . 4 3 . . 2 5 . 7 3 8 . 6 . 3 . . . Cutter 2 | . . . . . . 2 . . . . . . . . . . . . . . . . . . . . . Saboteur 1 | . . . . . . . . . . . . . . . . . . 1 . . . . . . . . . Grunt 97 | . 5 2 10 12 3 8 8 8 3 . 9 1 . . . 6 . 9 5 3 . . . 3 . . 2 Brawler 3 | . . . . . . . 1 . . . . . . . . . . 1 . . . . . . . . 1 Duelist 6 | . . . . 1 1 . 1 1 . . . . . . . . . . 2 . . . . . . . . Protector 2 | . . . . . . . . . . . . . . . . . . 2 . . . . . . . . . Sentry 45 | . . . 7 2 7 . 7 3 3 . 3 1 1 . . . . 4 . . . 1 1 4 . . 1 Demolisher 2 | . . . . . . . . . . . . . . . . . . . . . . . . . . . 2 Specialist 4 | . . . . . . . . . . . . . . . . 1 . 3 . . . . . . . . . Hunter 10 | . . . . . . 1 . 2 . . 1 . 1 . . . . 2 . . . 2 1 . . . . Programmer 32 | . . . . . . 3 . 3 3 . 4 . . . 1 2 . 11 . . . . . . . . 5 Behemoth 2 | . . . . . . . . . . . . . . . 1 . . . . . . . 1 . . . . Compactor 1 | . . . . . . . . . . 1 . . . . . . . . . . . . . . . . . Cetus Guard 3 | . . . . . . . . . . . . . . . . . . . . . . . . . 3 . . Enhanced Grunt 1 | . . . . . . . . . . . . . . . . . . . . . . . . . . . 1 Packrat 2 | . . . . . . . . . . . . . 2 . . . . . . . . . . . . . . Thug 3 | . . . . . . . . . . . . . . . . . . . 3 . . . . . . . . Butcher 1 | . . . . . . . . . . . . . . . . . . . 1 . . . . . . . . Mutant 1 | . . . . . . . . . . . . . . . . . . . 1 . . . . . . . . Best Kill Streak 13 | 1 4 1 8 8 7 5 8 3 4 1 4 3 1 . 2 4 . 13 5 4 . 4 1 3 2 1 3 Combat Bots Only 11 | . 3 1 4 7 7 5 4 3 3 1 3 3 1 . 2 4 . 11 5 4 . 4 1 3 2 . 3 Max Kills in Single Turn 4 | 1 1 1 2 2 3 3 3 1 3 1 2 1 1 . 2 2 . 4 3 3 . 3 1 2 1 1 2 Gunslinging 1 | . . . . . 1 . . . . . . . . . . . . 1 . . . . . 1 . . 1 Exploded 4 | . . . 2 2 3 3 2 . 2 . . 1 . . 2 . . 4 3 3 . 3 . . . . . Melee 1 | . . . . . . 1 . . . . . . . . 1 . . . . . . . . . . . . Uniques/NPCs Destroyed 1 | . . . . . . . . . . . . . . . . . . . . . . . . . 1 . . A7 (-5/Cetus) Combat | -11 -10 -10 -9 -9 -8 -8 -8 -8 -7 -7 -7 -7 -7 -7 -6 -6 -6 -6 -6 -6 -6 -5 -5 -5 -5 -5 -5 -------- Run | Yrd Mat Min Mat Sto Mat Gar Mat Gar Fac Was Fac Low Low Zio Pro Fac Was Fac Low Low Dat Pro Fac Ext Cet Arc Hub Hostile Shots Fired 1491 | . 46 7 95 94 95 63 69 80 76 2 109 47 29 . 31 69 . 205 68 38 . 42 18 19 25 2 162 Missed 507 | . 10 4 35 21 31 19 17 23 32 . 41 26 6 . 12 25 . 77 27 10 . 15 6 5 8 1 56 Hits 984 | . 36 3 60 73 64 44 52 57 44 2 68 21 23 . 19 44 . 128 41 28 . 27 12 14 17 1 106 Melee 19 | . . 2 . . 2 1 1 . . 2 . . 5 . . 1 . . 4 . . . . . . . 1 Projectile 965 | . 36 1 60 73 62 43 51 57 44 . 68 21 18 . 19 43 . 128 37 28 . 27 12 14 17 1 105 AOE 8 | . . . . . . 1 . . . . . . . . . . . . . . . . . . . . 7 Critical Strikes 32 | . . . 1 1 1 2 1 3 1 2 3 . . . 1 2 . 3 . 1 . . . . 3 . 7 Part Disruptions 1 | . . . . . . . . 1 . . . . . . . . . . . . . . . . . . . Damage Taken 15045 | . 450 49 789 799 763 513 719 844 458 94 619 241 638 . 350 707 . 1346 795 439 . 490 330 317 418 29 2848 Core 2088 | . 108 . 77 67 80 58 118 29 27 . 64 16 81 . . 86 . 168 48 . . 48 116 44 45 . 808 Absorbed by Shields 1057 | . . . . 57 . 55 . 4 76 . 140 . . . . . . 550 . . . . . 64 111 . . Regen/Repaired (Parts) 508 | . . . . 128 . . 58 . . 11 146 . . . . . . . . . . . . . 5 . 160 Core Remaining (%) 66 | 100 . 56 . 64 . . . 48 . . . . . . 73 . . . . . . 58 . . . . . Volleys Fired 815 | 5 31 29 82 64 56 38 61 63 28 9 49 13 26 1 15 42 . 85 33 10 . 16 2 16 13 . 28 Largest 4 | 2 2 2 2 2 3 3 3 3 3 3 3 3 3 1 3 3 . 3 3 3 . 3 4 4 4 . 4 Hottest 242 | 90 90 112 112 112 168 168 183 183 202 221 242 60 121 81 121 181 . 242 72 72 . 72 157 157 157 . 218 Shots Fired 2026 | 10 62 36 157 120 161 104 179 149 78 23 130 36 52 1 27 124 . 205 85 20 . 49 8 61 52 . 97 Gun 1932 | 10 62 14 152 112 160 102 178 149 77 23 130 34 51 1 20 124 . 184 80 16 . 48 8 60 52 . 85 Cannon 30 | . . . . . . . . . . . . . . . 5 . . 13 . . . . . . . . 12 Launcher 42 | . . . 5 8 1 2 1 . 1 . . 2 1 . 2 . . 8 5 4 . 1 . 1 . . . Special 22 | . . 22 . . . . . . . . . . . . . . . . . . . . . . . . . Kinetic 1 | . . . 1 . . . . . . . . . . . . . . . . . . . . . . . . Thermal 1983 | 10 62 36 151 112 160 102 178 149 77 23 130 34 51 1 25 124 . 197 80 16 . 48 8 60 52 . 97 Explosive 42 | . . . 5 8 1 2 1 . 1 . . 2 1 . 2 . . 8 5 4 . 1 . 1 . . . Electromagnetic . | . . . . . . . . . . . . . . . . . . . . . . . . . . . . Robot Hit Streak 29 | 5 8 7 11 9 15 12 18 20 29 23 23 27 9 . 6 20 . 18 14 13 . 11 9 17 9 . 13 Robot Miss Streak 6 | 1 4 1 4 3 3 3 3 3 2 2 5 1 2 . 2 6 . 3 4 1 . 3 . 4 1 . 4 Penetration Max . | . . . . . . . . . . . . . . . . . . . . . . . . . . . . Secondary Targets 41 | . 1 . 3 4 6 3 1 3 . . 1 . . . . 2 . 5 3 2 . 2 . 2 1 . 2 Max Gunslinging Chain 1 | . 1 . 1 1 1 1 1 1 . . 1 . . . . 1 . 1 1 1 . 1 . 1 1 . 1 Shots Hit Robots 1364 | 9 38 11 106 76 115 66 115 82 61 23 101 26 25 . 16 86 . 144 62 11 . 25 10 45 45 3 63 Core Hits 686 | 3 18 5 51 52 42 39 45 30 33 8 63 11 12 . 5 46 . 107 24 13 . 13 1 19 20 1 25 Critical Kills . | . . . . . . . . . . . . . . . . . . . . . . . . . . . . Critical Parts Destroyed . | . . . . . . . . . . . . . . . . . . . . . . . . . . . . Critical Strikes 111 | . . 1 10 4 9 14 5 14 3 . 6 2 2 . 1 1 . 9 4 . . 4 3 5 5 . 9 Burn 105 | . . 1 10 4 9 14 5 14 3 . 5 2 2 . . 1 . 9 4 . . 4 2 5 3 . 8 Sever 1 | . . . . . . . . . . . 1 . . . . . . . . . . . . . . . . Impale 5 | . . . . . . . . . . . . . . . 1 . . . . . . . 1 . 2 . 1 Melee Attacks 98 | . . . . 12 10 21 2 3 3 5 13 . 5 . 3 . . 5 . . . . 3 . 8 3 2 Impact 48 | . . . . 12 10 21 2 3 . . . . . . . . . . . . . . . . . . . Slashing 26 | . . . . . . . . . 3 5 13 . 5 . . . . . . . . . . . . . . Piercing 23 | . . . . . . . . . . . . . . . 3 . . 5 . . . . 3 . 8 2 2 Sneak Attacks 16 | . . . . 1 1 . 1 . . . 3 . . . . . . . . . . . . . 5 3 2 Combat Hostiles . | . . . . . . . . . . . . . . . . . . . . . . . . . . . . Follow-up Attacks . | . . . . . . . . . . . . . . . . . . . . . . . . . . . . Damage Inflicted 37741 | 114 519 167 2281 2374 2301 1779 2558 1746 1612 598 2963 646 761 . 518 2161 . 5984 2153 965 . 915 229 1111 1206 134 1946 Guns 28167 | 110 457 156 1559 1182 2056 1215 2298 1746 1266 598 2631 502 511 . 296 2028 . 3601 1453 255 . 615 158 1097 951 . 1426 Cannons 320 | . . . . . . . . . . . . . . . . . . . . . . . . . . . 320 Explosions 7355 | . 48 . 717 1043 144 562 125 . 295 . . 144 250 . 126 . . 2191 700 710 . 300 . . . . . Melee 1193 | . . . . 86 63 . 51 . . . 280 . . . 96 . . . . . . . 71 . 255 134 157 Ramming 706 | 4 14 11 5 63 38 2 84 . 51 . 52 . . . . 133 . 192 . . . . . 14 . . 43 Kinetic 16 | . . . 16 . . . . . . . . . . . . . . . . . . . . . . . . Thermal 28581 | 110 457 156 1543 1182 2056 1215 2298 1746 1266 598 2631 502 621 . 296 2028 . 3601 1453 255 . 615 158 1097 951 . 1746 Explosive 7245 | . 48 . 717 1043 144 562 125 . 295 . . 144 140 . 126 . . 2191 700 710 . 300 . . . . . Electromagnetic . | . . . . . . . . . . . . . . . . . . . . . . . . . . . . Impact 200 | . . . . 86 63 . 51 . . . . . . . . . . . . . . . . . . . . Slashing 280 | . . . . . . . . . . . 280 . . . . . . . . . . . . . . . . Piercing 713 | . . . . . . . . . . . . . . . 96 . . . . . . . 71 . 255 134 157 Highest Corruption 13 | . 1 1 3 3 . . 4 4 1 1 2 2 5 5 2 2 11 11 3 3 3 3 . . . . 13 Average Corruption 3 | . 1 1 2 3 . . 3 3 1 1 1 2 4 5 1 1 9 7 2 3 3 3 . . . . 2 Corruption Purged 13 | . . . . . . . 4 . . . . . . . . . . 5 . . . . . . . . 4 Corruption Blocked . | . . . . . . . . . . . . . . . . . . . . . . . . . . . . Effects 299 | . 4 3 4 24 . . 10 22 3 4 18 19 28 . 4 11 3 83 24 14 2 13 . . . . 6 Message Errors 78 | . 1 1 . 6 . . 3 6 . 3 3 7 8 . 2 2 . 20 8 3 . 4 . . . . 1 Matter Fused 73 | . . 1 . 9 . . 4 7 2 . 4 5 6 . . 4 . 19 4 2 1 4 . . . . 1 Heat Flow Errors 23 | . . . 1 1 . . 1 1 . . 1 1 5 . . 2 1 5 2 1 . 1 . . . . . Energy Discharges 37 | . 1 1 1 4 . . . . . . 2 3 5 . . 1 2 10 4 . 1 1 . . . . 1 Parts Fused 1 | . . . . . . . . . . . . . . . . . . . 1 . . . . . . . . Data Loss (minor) 30 | . 1 . 1 1 . . 1 3 . . 1 1 1 . 1 . . 16 . 3 . . . . . . . Data Loss (major) 18 | . 1 . . 1 . . 1 2 . 1 3 . 1 . . . . 3 3 2 . . . . . . . Misfires 16 | . . . . 1 . . . 1 1 . 3 2 1 . . . . 3 . 1 . 3 . . . . . Alerts 5 | . . . . 1 . . . 1 . . . . . . 1 . . . . 1 . . . . . . 1 Misdirections 2 | . . . . . . . . . . . . . . . . . . . . . . . . . . . 2 Weapon Failures 16 | . . . 1 . . . . 1 . . 1 . 1 . . 2 . 7 2 1 . . . . . . . Overload Shots . | . . . . . . . . . . . . . . . . . . . . . . . . . . . . Overflow Damage 346 | . . . 22 42 . 70 . . 36 . . . 10 . . 3 . 47 . 87 . . . . . . 29 Projectiles 29 | . . . . . . . . . . . . . . . . . . . . . . . . . . . 29 Explosions 312 | . . . 22 42 . 70 . . 36 . . . 10 . . . . 45 . 87 . . . . . . . Melee 5 | . . . . . . . . . . . . . . . . 3 . 2 . . . . . . . . . Knockbacks 9 | . 1 1 . . . . 3 . 1 . . . . . . 2 . . . . . . . 1 . . . Impact 8 | . 1 1 . . . . 3 . 1 . . . . . . 1 . . . . . . . 1 . . . Kinetic . | . . . . . . . . . . . . . . . . . . . . . . . . . . . . Secondary 1 | . . . . . . . . . . . . . . . . 1 . . . . . . . . . . . Self-Inflicted Damage 159 | . 81 . . 56 . 5 . . . . . 15 . . . . . 2 . . . . . . . . . Shots 6 | . 1 . . 2 . 1 . . . . . 1 . . . . . 1 . . . . . . . . . Rammed 44 | 3 3 2 2 16 8 . 7 . 3 . . . . . . . . . . . . . . . . . . Targets Rammed 89 | 3 3 3 3 16 10 1 8 . 7 . 10 . . . . 7 . 13 . . . . . 1 . . 4 Kicked 38 | . . . . . . . . . 3 . 10 . . . . 7 . 13 . . . . . 1 . . 4 Crushed 7 | . . 1 1 . 2 1 1 . 1 . . . . . . . . . . . . . . . . . . Highest Temperature 354 | 90 156 42 234 130 171 72 257 354 127 194 202 189 256 . . 253 207 234 157 96 . 224 . . 21 . 194 Average Temperature 52 | 40 60 20 39 24 46 24 47 81 45 90 71 101 113 . . 45 102 73 81 70 . 131 . . 14 . 53 Received Heat Transfer 3059 | . 162 6 297 234 198 108 306 258 82 . 174 48 6 . 12 87 . 254 234 112 . 45 45 35 40 . 316 Effects 4 | . . . . . . . . 3 . . . . 1 . . . . . . . . . . . . . . Energy Bleed 1 | . . . . . . . . . . . . . 1 . . . . . . . . . . . . . . Interference 2 | . . . . . . . . 2 . . . . . . . . . . . . . . . . . . . Short Circuit 1 | . . . . . . . . 1 . . . . . . . . . . . . . . . . . . . Siege Activations . | . . . . . . . . . . . . . . . . . . . . . . . . . . . . Martial Activations . | . . . . . . . . . . . . . . . . . . . . . . . . . . . . Shielding Activations . | . . . . . . . . . . . . . . . . . . . . . . . . . . . . Robots Disrupted . | . . . . . . . . . . . . . . . . . . . . . . . . . . . . Combat Hostiles . | . . . . . . . . . . . . . . . . . . . . . . . . . . . . Robots Corrupted 2 | . . . . . . . . . . . . . . . . 1 . 1 . . . . . . . . . Combat Hostiles . | . . . . . . . . . . . . . . . . . . . . . . . . . . . . Parts Fried 4 | . . . . . . . . . . . . . . . 1 1 . 2 . . . . . . . . . Impact Corruptions 2 | . . . . . . . . . . . . . . . . 1 . 1 . . . . . . . . . Robots Melted 29 | . . . . . 2 1 . 1 3 1 2 . . . 1 1 . 3 3 . . 1 2 3 . . 5 Combat Hostiles 28 | . . . . . 2 . . 1 3 1 2 . . . 1 1 . 3 3 . . 1 2 3 . . 5 Parts Melted 189 | . 2 1 12 4 19 13 15 15 9 1 16 6 . . . 9 . 19 11 . . 8 2 9 2 . 16 Heat Transferred 64616 | 273 1130 434 4625 3071 4921 3552 4773 4070 2824 1335 5218 1110 1153 . 481 4071 . 6700 3350 500 . 1650 550 2825 2400 . 3600 Parts Sabotaged 3 | . . . . . . . . . . . . . . . . . . . . . . . . . . . 3 Parts Stolen 2 | . . . . . . . . . . . . . 2 . . . . . . . . . . . . . . Parts Stripped . | . . . . . . . . . . . . . . . . . . . . . . . . . . . . Power Chain Reactions . | . . . . . . . . . . . . . . . . . . . . . . . . . . . . Alert | -11 -10 -10 -9 -9 -8 -8 -8 -8 -7 -7 -7 -7 -7 -7 -6 -6 -6 -6 -6 -6 -6 -5 -5 -5 -5 -5 -5 ------- Run | Yrd Mat Min Mat Sto Mat Gar Mat Gar Fac Was Fac Low Low Zio Pro Fac Was Fac Low Low Dat Pro Fac Ext Cet Arc Hub Maximum Alert Level 3 | . 1 . 1 2 1 3 3 3 2 . 2 . . . . 2 1 2 . . . . . 2 1 . 2 Low Security (%) 40 | 100 97 100 74 19 81 20 . . . 100 6 . . . . 35 50 69 . . . . 100 70 . 100 11 Level 1 21 | . 2 . 25 8 18 7 17 8 60 . 70 . . . . 16 49 7 . . . . . 22 100 . 10 Level 2 32 | . . . . 72 . 33 74 51 39 . 23 . . . . 47 . 23 . . . . . 6 . . 78 Level 3 4 | . . . . . . 38 7 39 . . . . . . . . . . . . . . . . . . . Level 4 . | . . . . . . . . . . . . . . . . . . . . . . . . . . . . Level 5 . | . . . . . . . . . . . . . . . . . . . . . . . . . . . . High Security . | . . . . . . . . . . . . . . . . . . . . . . . . . . . . Max Security . | . . . . . . . . . . . . . . . . . . . . . . . . . . . . Peak Influence 1047 | 5 204 74 328 655 327 906 759 1047 549 158 536 . . . . 629 218 698 . . . . 40 532 386 168 623 Initial 549 | . . 27 19 18 273 48 441 341 549 158 . . . . . 124 218 124 . . . . . . 288 118 23 Average 290 | 1 95 15 115 417 96 512 519 661 394 47 303 . . . . 312 202 171 . . . . 7 128 327 112 419 Influence Increases 14130 | 10 298 174 814 1390 821 878 746 726 421 32 1267 110 80 . 543 972 . 1210 245 250 . 200 90 892 364 200 1397 Destroy 0b10 Robot/C 7480 | . 160 120 500 780 420 500 440 340 240 . 580 100 40 . 240 460 . 780 200 220 . 180 60 400 160 80 480 Destroy 0b10 Robot/NC 525 | 10 15 5 50 65 55 5 45 . 35 . 40 . 15 . . 35 . 60 . . . . . 25 10 5 50 Destroy Leader 1546 | . 34 10 152 174 132 40 136 40 84 . 138 10 10 . 50 76 . 198 30 30 . 20 30 44 . . 108 Allied During Kill 1719 | . . 16 10 106 . 6 . 4 . . 114 . . . 253 144 . . . . . . . 383 170 85 428 Trap Triggered on 0b10 10 | . . . . . . . . . 10 . . . . . . . . . . . . . . . . . . Successful Hack 293 | . 6 6 17 6 41 14 27 . 30 . 106 . . . . 3 . 25 . . . . . 12 . . . Select Force Hacks 60 | . 30 . . 30 . . . . . . . . . . . . . . . . . . . . . . . Disable Machine 585 | . 15 15 45 120 15 15 15 15 . . 30 . . . . 45 . 90 . . . . . . . 30 135 Anti-Garrison Action 850 | . . . . . . 250 . 200 . . 200 . . . . 200 . . . . . . . . . . . Destroy Structure 492 | . 23 2 40 49 23 33 23 52 7 32 14 . . . . 9 . 57 . . . . . 28 24 . 76 Partial Spotted 30 | . . . . . . 15 . . . . 15 . . . . . . . . . . . . . . . . Lose Combat Pursuer 540 | . 15 . . 60 135 . 60 75 15 . 30 . 15 . . . . . 15 . . . . . . . 120 Influence Decreases 13637 | 10 226 196 818 787 1395 47 1127 204 1016 484 736 638 83 . 345 547 445 698 748 420 17 200 90 376 584 428 972 Entered New Map 3441 | . . 45 31 28 376 27 465 184 498 294 . 198 2 . . 74 405 54 256 36 17 . . . 228 178 45 Time Decay 7947 | 10 226 151 428 549 569 . 502 . 518 120 606 440 81 . 335 373 40 564 482 374 . 180 90 346 206 130 627 Lost Part 290 | . . . 20 20 . . 10 . . 20 10 . . . 10 . . 20 10 10 . 20 . 10 10 . 120 Lost Ally 910 | . . . 40 40 . 20 . 20 . 50 120 . . . . 100 . 60 . . . . . 20 140 120 180 Purge Threat 1049 | . . . 299 150 450 . 150 . . . . . . . . . . . . . . . . . . . . Squads Dispatched 52 | . 2 . . 6 3 . 3 . 5 . 10 . . . . 6 . 8 . . . . . . . . 9 Investigation 16 | . 2 . . 3 2 . 2 . 1 . 2 . . . . 1 . 2 . . . . . . . . 1 Extermination 19 | . . . . . . . . . 3 . 5 . . . . 2 . 6 . . . . . . . . 3 Reinforcement 9 | . . . . . . . 1 . 1 . 3 . . . . 3 . . . . . . . . . . 1 Assault 6 | . . . . 2 . . . . . . . . . . . . . . . . . . . . . . 4 Garrison 2 | . . . . 1 1 . . . . . . . . . . . . . . . . . . . . . . Intercept . | . . . . . . . . . . . . . . . . . . . . . . . . . . . . Searches Triggered . | . . . . . . . . . . . . . . . . . . . . . . . . . . . . Data Miner Redirects 2 | . . . . . . . . . . . . . . . . . . . . . . . . . . . 2 Construction Impeded . | . . . . . . . . . . . . . . . . . . . . . . . . . . . . Haulers Reinforced 4 | . . . . . . . . . . . 2 . . . . 2 . . . . . . . . . . . Active Scanning Responses . | . . . . . . . . . . . . . . . . . . . . . . . . . . . . Cargo Convoy Interrupts 1 | . . . . . . . . . . . . . . . . . . 1 . . . . . . . . . Stealth | -11 -10 -10 -9 -9 -8 -8 -8 -8 -7 -7 -7 -7 -7 -7 -6 -6 -6 -6 -6 -6 -6 -5 -5 -5 -5 -5 -5 --------- Run | Yrd Mat Min Mat Sto Mat Gar Mat Gar Fac Was Fac Low Low Zio Pro Fac Was Fac Low Low Dat Pro Fac Ext Cet Arc Hub Distress Signals 29 | . . . 4 2 3 . 9 . 1 . 2 . . . . 1 . . . . . . . 3 2 . 2 Communications Jammed . | . . . . . . . . . . . . . . . . . . . . . . . . . . . . Distress Signals . | . . . . . . . . . . . . . . . . . . . . . . . . . . . . Times Spotted 515 | . 15 4 35 48 51 24 37 19 20 8 40 5 5 . 12 25 5 45 16 10 . 6 3 21 10 3 48 Peak Tracking Total 13 | . 4 2 4 8 10 4 7 4 4 6 4 3 2 . 4 3 5 12 5 4 . 3 1 4 5 1 13 Tactical Retreats 25 | . 1 2 . 3 3 . 4 3 1 2 2 . 1 . . . . . 1 . . . . . . . 2 Traps | -11 -10 -10 -9 -9 -8 -8 -8 -8 -7 -7 -7 -7 -7 -7 -6 -6 -6 -6 -6 -6 -6 -5 -5 -5 -5 -5 -5 ------- Run | Yrd Mat Min Mat Sto Mat Gar Mat Gar Fac Was Fac Low Low Zio Pro Fac Was Fac Low Low Dat Pro Fac Ext Cet Arc Hub Traps Triggered 27 | . 1 . 2 2 1 6 . 5 3 . . . . . . 2 . 3 . . . . . 1 . . 1 Indirectly . | . . . . . . . . . . . . . . . . . . . . . . . . . . . . Trap Hack Attempts 48 | . . . . . 34 . 8 . 6 . . . . . . . . . . . . . . . . . . Triggered . | . . . . . . . . . . . . . . . . . . . . . . . . . . . . Disarmed 1 | . . . . . 1 . . . . . . . . . . . . . . . . . . . . . . Reprogrammed 9 | . . . . 6 1 . 1 . 1 . . . . . . . . . . . . . . . . . . Reused 1 | . . . . . . . . . 1 . . . . . . . . . . . . . . . . . . Traps Extracted . | . . . . . . . . . . . . . . . . . . . . . . . . . . . . Installed . | . . . . . . . . . . . . . . . . . . . . . . . . . . . . Triggered 1 | . . . . . . . . . 1 . . . . . . . . . . . . . . . . . . Machines | -11 -10 -10 -9 -9 -8 -8 -8 -8 -7 -7 -7 -7 -7 -7 -6 -6 -6 -6 -6 -6 -6 -5 -5 -5 -5 -5 -5 ---------- Run | Yrd Mat Min Mat Sto Mat Gar Mat Gar Fac Was Fac Low Low Zio Pro Fac Was Fac Low Low Dat Pro Fac Ext Cet Arc Hub Machines Disabled 51 | . 1 1 3 8 1 4 1 3 . . 2 . 1 . . 3 . 6 2 . . . . 4 . 2 9 Max in Single Turn 2 | . 1 . 2 1 1 1 1 1 . . 1 . 1 . . 1 . 1 1 . . . . . . . . Garrison Access 5 | . . . . 1 . . . . 1 . 1 . . . . 1 . . . . . . . . . . 1 Garrison Relay 5 | . . . . . . 3 . 2 . . . . . . . . . . . . . . . . . . . Network Hub 3 | . . . . . . . . . . . . . . . . . . . . . . . . . . . 3 Machines Repaired . | . . . . . . . . . . . . . . . . . . . . . . . . . . . . Machines Dismantled 3 | . . . . 2 . . . 1 . . . . . . . . . . . . . . . . . . . Machines Sabotaged . | . . . . . . . . . . . . . . . . . . . . . . . . . . . . Overloaded Fab Kills . | . . . . . . . . . . . . . . . . . . . . . . . . . . . . Hacking | -11 -10 -10 -9 -9 -8 -8 -8 -8 -7 -7 -7 -7 -7 -7 -6 -6 -6 -6 -6 -6 -6 -5 -5 -5 -5 -5 -5 --------- Run | Yrd Mat Min Mat Sto Mat Gar Mat Gar Fac Was Fac Low Low Zio Pro Fac Was Fac Low Low Dat Pro Fac Ext Cet Arc Hub Machines Accessed 99 | . 4 2 4 14 16 2 10 3 11 . 9 1 1 . 1 4 . 8 2 . 3 . 3 1 . . . Terminals 49 | . 2 1 4 10 10 2 7 3 4 . 5 . . . 1 . . . . . . . . . . . . Fabricators 11 | . . . . . . . . . 3 . 1 . . . . 1 . 4 . . . . 2 . . . . Repair Stations 5 | . . . . 1 1 . 1 . . . 1 . . . . . . . . . . . . 1 . . . Recycling Units 14 | . 2 . . 2 2 . 1 . 1 . . . . . . 2 . 3 . . . . 1 . . . . Scanalyzers 3 | . . . . . 2 . . . 1 . . . . . . . . . . . . . . . . . . Garrison Access 9 | . . . . 1 1 . 1 . 2 . 2 . . . . 1 . 1 . . . . . . . . . Total Hacks 265 | . 11 5 12 34 46 5 23 6 20 . 23 1 1 . 1 8 . 23 8 . 22 . 14 2 . . . Successful 136 | . 5 3 7 13 25 1 12 1 10 . 9 1 1 . 1 6 . 8 8 . 22 . 2 1 . . . Failed 127 | . 6 2 4 21 20 4 11 5 10 . 14 . . . . 2 . 15 . . . . 12 1 . . . Catastrophic 29 | . 1 . 1 5 . 1 3 1 5 . 7 . . . . . . 3 . . . . 2 . . . . Database Lockouts 2 | . . . 1 . 1 . . . . . . . . . . . . . . . . . . . . . . Manual 177 | . 10 3 7 11 20 1 16 . 7 . 10 . . 1 . 7 . 36 . . . . 8 24 1 . 15 Terminals 129 | . 8 4 12 25 30 5 17 6 6 . 15 . . . 1 . . . . . . . . . . . . Fabricators 34 | . . . . . . . . . 8 . 1 . . . . 2 . 14 . . . . 9 . . . . Repair Stations 9 | . . . . 2 1 . 1 . . . 3 . . . . . . . . . . . . 2 . . . Recycling Units 32 | . 3 . . 5 4 . 1 . 1 . . . . . . 5 . 8 . . . . 5 . . . . Scanalyzers 12 | . . . . . 9 . . . 3 . . . . . . . . . . . . . . . . . . Garrison Access 16 | . . . . 2 2 . 4 . 2 . 4 . . . . 1 . 1 . . . . . . . . . Terminal Hacks 77 | . 2 3 6 7 11 1 7 1 1 . 5 1 1 . 1 . . . 8 . 22 . . . . . . Record 15 | . . 1 . . . . . . . . . . . . 1 . . . 7 . 6 . . . . . . Part Schematic 9 | . . . . . . . . . . . 1 . . . . . . . . . 8 . . . . . . Robot Schematic 5 | . . . . . . . . . . . . . . . . . . . . . 5 . . . . . . Robot Analysis 7 | . 2 1 1 . 2 . 1 . . . . . . . . . . . . . . . . . . . . Prototype ID Bank 5 | . . . 1 . . . . . . . 1 . . . . . . . . . 3 . . . . . . Open Door 6 | . . 1 . 2 . . . . . . . 1 1 . . . . . 1 . . . . . . . . Branch Access Points 2 | . . . 1 . . . . . 1 . . . . . . . . . . . . . . . . . . Emergency Access Points 2 | . . . . . . 1 . 1 . . . . . . . . . . . . . . . . . . . Terminal Index 1 | . . . . . . . . . . . 1 . . . . . . . . . . . . . . . . Garrison Index 1 | . . . . . 1 . . . . . . . . . . . . . . . . . . . . . . Unreport Threat 7 | . . . 2 1 3 . 1 . . . . . . . . . . . . . . . . . . . . Locate Traps 5 | . . . 1 1 1 . 2 . . . . . . . . . . . . . . . . . . . . Reprogram Traps 1 | . . . . 1 . . . . . . . . . . . . . . . . . . . . . . . Recall Investigation 1 | . . . . 1 . . . . . . . . . . . . . . . . . . . . . . . Recall Extermination 1 | . . . . . . . . . . . 1 . . . . . . . . . . . . . . . . Hauler Manifests 3 | . . . . 1 1 . . . . . 1 . . . . . . . . . . . . . . . . Registered Components 1 | . . . . . 1 . . . . . . . . . . . . . . . . . . . . . . Zone Layout 5 | . . . . . 2 . 3 . . . . . . . . . . . . . . . . . . . . Fabricator Hacks 5 | . . . . . . . . . 1 . . . . . . 1 . 2 . . . . 1 . . . . Network Status 4 | . . . . . . . . . 1 . . . . . . 1 . 1 . . . . 1 . . . . Build 1 | . . . . . . . . . . . . . . . . . . 1 . . . . . . . . . Repair Station Hacks 5 | . . . . 2 . . . . . . 2 . . . . . . . . . . . . 1 . . . Scan Component 3 | . . . . 1 . . . . . . 1 . . . . . . . . . . . . 1 . . . Repair 2 | . . . . 1 . . . . . . 1 . . . . . . . . . . . . . . . . Recycling Unit Hacks 5 | . 1 . . . 1 . . . . . . . . . . 2 . 1 . . . . . . . . . Retrieve Components 5 | . 1 . . . 1 . . . . . . . . . . 2 . 1 . . . . . . . . . Scanalyzer 10 | . . . . . 8 . . . 2 . . . . . . . . . . . . . . . . . . Insert Component 5 | . . . . . 4 . . . 1 . . . . . . . . . . . . . . . . . . Analyze 5 | . . . . . 4 . . . 1 . . . . . . . . . . . . . . . . . . Garrison Access Hacks 4 | . . . . 1 1 . 1 . 1 . . . . . . . . . . . . . . . . . . Unlock Access 2 | . . . . . 1 . 1 . . . . . . . . . . . . . . . . . . . . Seal Access 2 | . . . . 1 . . . . 1 . . . . . . . . . . . . . . . . . . Unauthorized Hacks 30 | . 2 . 1 3 4 . 4 . 5 . 2 . . . . 3 . 5 . . . . 1 . . . . Terminals 9 | . . . 1 1 2 . 2 . 2 . 1 . . . . . . . . . . . . . . . . Track 1 | . . . . . . . . . 1 . . . . . . . . . . . . . . . . . . Botnet 7 | . . . 1 1 2 . 1 . 1 . 1 . . . . . . . . . . . . . . . . Operators 1 | . . . . . . . 1 . . . . . . . . . . . . . . . . . . . . Fabricators 6 | . . . . . . . . . 2 . . . . . . . . 4 . . . . . . . . . Liberate 4 | . . . . . . . . . 1 . . . . . . . . 3 . . . . . . . . . Haulers 2 | . . . . . . . . . 1 . . . . . . . . 1 . . . . . . . . . Repair Stations 1 | . . . . . . . 1 . . . . . . . . . . . . . . . . . . . . Patch 1 | . . . . . . . 1 . . . . . . . . . . . . . . . . . . . . Recycling Units 11 | . 2 . . 2 1 . 1 . 1 . . . . . . 2 . 1 . . . . 1 . . . . Reject 9 | . 1 . . 1 1 . 1 . 1 . . . . . . 2 . 1 . . . . 1 . . . . Tunnel 2 | . 1 . . 1 . . . . . . . . . . . . . . . . . . . . . . . Scanalyzers . | . . . . . . . . . . . . . . . . . . . . . . . . . . . . Garrison Access 3 | . . . . . 1 . . . . . 1 . . . . 1 . . . . . . . . . . . Reprogram 1 | . . . . . 1 . . . . . . . . . . . . . . . . . . . . . . Jam 2 | . . . . . . . . . . . 1 . . . . 1 . . . . . . . . . . . Data Cores Recovered 6 | . . . . 1 2 . . . 1 . 1 . . . . . . 1 . . . . . . . . . Used 1 | . . . . . 1 . . . . . . . . . . . . . . . . . . . . . . Hacking Detections 76 | . 2 1 4 11 14 2 8 3 8 . 9 . . . . 2 . 8 . . . . 3 1 . . . Full Trace Events 9 | . 1 . . 3 . . 1 . 1 . 1 . . . . . . 2 . . . . . . . . . Feedback Events 1 | . 1 . . . . . . . . . . . . . . . . . . . . . . . . . . Corruption 1 | . 1 . . . . . . . . . . . . . . . . . . . . . . . . . . Feedback Blocked . | . . . . . . . . . . . . . . . . . . . . . . . . . . . . Robot Schematics Acquired 12 | . . . . . . . . . . . . . . 2 . . . . . . 5 . . 5 . . . Robots Built 3 | . . . . . . . . . . . . . . . . . . 3 . . . . . . . . . Authchips . | . . . . . . . . . . . . . . . . . . . . . . . . . . . . Time 152 | . . . . . . . . . . . . . . . . . . 152 . . . . . . . . . Total Robot Build Rating 15 | . . . . . . . . . . . . . . . . . . 15 . . . . . . . . . Part Schematics Acquired 61 | . . . . . 4 . . . 1 . 1 . . 15 . . . 8 . . 8 . . 24 . . . Parts Built . | . . . . . . . . . . . . . . . . . . . . . . . . . . . . Authchips . | . . . . . . . . . . . . . . . . . . . . . . . . . . . . Time . | . . . . . . . . . . . . . . . . . . . . . . . . . . . . Total Part Build Rating . | . . . . . . . . . . . . . . . . . . . . . . . . . . . . Parts Repaired 2 | . . . . 1 . . . . . . 1 . . . . . . . . . . . . . . . . Time 54 | . . . . 32 . . . . . . 22 . . . . . . . . . . . . . . . . Parts Recycled . | . . . . . . . . . . . . . . . . . . . . . . . . . . . . Recycled Matter . | . . . . . . . . . . . . . . . . . . . . . . . . . . . . Retrieved Matter . | . . . . . . . . . . . . . . . . . . . . . . . . . . . . Retrieved Components 14 | . . . . . 9 . . . . . . . . . . 4 . 1 . . . . . . . . . Parts Scanalyzed 5 | . . . . . 4 . . . 1 . . . . . . . . . . . . . . . . . . Part Schematics Acquired 5 | . . . . . 4 . . . 1 . . . . . . . . . . . . . . . . . . Parts Damaged . | . . . . . . . . . . . . . . . . . . . . . . . . . . . . Bothacking | -11 -10 -10 -9 -9 -8 -8 -8 -8 -7 -7 -7 -7 -7 -7 -6 -6 -6 -6 -6 -6 -6 -5 -5 -5 -5 -5 -5 ------------ Run | Yrd Mat Min Mat Sto Mat Gar Mat Gar Fac Was Fac Low Low Zio Pro Fac Was Fac Low Low Dat Pro Fac Ext Cet Arc Hub Used RIF Installer . | . . . . . . . . . . . . . . . . . . . . . . . . . . . . Robots Hacked 1 | . . . . . . . . . . . . . . . . . . . . . . . . . . 1 . Non-combat 1 | . . . . . . . . . . . . . . . . . . . . . . . . . . 1 . Combat . | . . . . . . . . . . . . . . . . . . . . . . . . . . . . Robot Hacks Applied 1 | . . . . . . . . . . . . . . . . . . . . . . . . . . 1 . check_alert 1 | . . . . . . . . . . . . . . . . . . . . . . . . . . 1 . Relay Couplers Released 25 | . . . . . . 13 . 8 . . . . . . . 3 . . . . . . . . . . 1 Machine Destruction 22 | . . . . . . 13 . 8 . . . . . . . . . . . . . . . . . . 1 Programmers 3 | . . . . . . . . . . . . . . . . 3 . . . . . . . . . . . Fabnet Peak Effective % . | . . . . . . . . . . . . . . . . . . . . . . . . . . . . Robots Rewired 10 | . . . . . . . . . . . . . . . . . . . . . . . . 10 . . . Allies Hacked 3 | . . . . . . . . 2 . . 1 . . . . . . . . . . . . . . . . Hacks Repelled . | . . . . . . . . . . . . . . . . . . . . . . . . . . . . Allies | -11 -10 -10 -9 -9 -8 -8 -8 -8 -7 -7 -7 -7 -7 -7 -6 -6 -6 -6 -6 -6 -6 -5 -5 -5 -5 -5 -5 -------- Run | Yrd Mat Min Mat Sto Mat Gar Mat Gar Fac Was Fac Low Low Zio Pro Fac Was Fac Low Low Dat Pro Fac Ext Cet Arc Hub Total Allies 67 | . . 3 . 2 1 . . 2 . 19 . . . 6 . . . 3 . . . . . 24 5 . 2 Largest Group 23 | . . 3 2 2 1 1 . 2 . 19 7 . . 6 6 6 . 3 . . . . . 23 22 17 14 Highest-Rated Group 1021 | . . 40 24 62 16 16 . 62 . 465 198 . . 345 345 344 . 87 . . . . . 977 1021 853 755 Highest-Rated Ally 159 | . . 16 16 31 16 16 . 31 . 35 31 . . 96 96 96 . 29 . . . . . 159 159 96 96 Zionite Dispatches 5 | . . . . . . . . . . . . . . . . . . 1 . . . . . 3 . . 1 Light 2 | . . . . . . . . . . . . . . . . . . . . . . . . 2 . . . Recon 1 | . . . . . . . . . . . . . . . . . . 1 . . . . . . . . . Hacker 1 | . . . . . . . . . . . . . . . . . . . . . . . . . . . 1 Offense Resupply 1 | . . . . . . . . . . . . . . . . . . . . . . . . 1 . . . Initial Warlord ECA Mod 74 | . . . . . . . 7 7 10 10 10 10 10 10 . . . . . . . . . . . . . Total Orders 14 | . . 1 . . . . . . . . . . . . . . . 1 . . . . 1 3 1 . 7 STAY 8 | . . . . . . . . . . . . . . . . . . . . . . . . 1 . . 7 FOLLOW 1 | . . 1 . . . . . . . . . . . . . . . . . . . . . . . . . DROP 1 | . . . . . . . . . . . . . . . . . . . . . . . . 1 . . . RETURN 4 | . . . . . . . . . . . . . . . . . . 1 . . . . 1 1 1 . . Ally Attacks 718 | . . 33 22 51 1 9 . 12 . 123 53 . . . 44 62 . 17 . . . . . 91 71 37 92 Total Damage 19542 | . . 351 210 810 . 79 . 103 . 5848 985 . . . 1048 1295 . 272 . . . . . 2367 1783 977 3414 Kills 116 | . . 4 2 17 . 2 . . . 14 8 . . . 9 10 . 1 . . . . . 14 7 4 24 Allies Corrupted 4 | . . . . . . . . 2 . . 1 . . . . 1 . . . . . . . . . . . Allies Melted . | . . . . . . . . . . . . . . . . . . . . . . . . . . . . Intel | -11 -10 -10 -9 -9 -8 -8 -8 -8 -7 -7 -7 -7 -7 -7 -6 -6 -6 -6 -6 -6 -6 -5 -5 -5 -5 -5 -5 ------- Run | Yrd Mat Min Mat Sto Mat Gar Mat Gar Fac Was Fac Low Low Zio Pro Fac Was Fac Low Low Dat Pro Fac Ext Cet Arc Hub Active Infowar (turns) 2369 | . . . . . 95 . . . . . 2 854 87 . . . . . 9 . . 1 347 934 . . 40 Sensors 988 | . . . . . . . . . . . 2 854 87 . . . . . 9 . . . . . . . 36 Traps 1207 | . . . . . . . . . . . . . . . . . . . . . . . 347 860 . . . Seismic 95 | . . . . . 95 . . . . . . . . . . . . . . . . . . . . . . Cloaking 1 | . . . . . . . . . . . . . . . . . . . . . . 1 . . . . . Jamming 78 | . . . . . . . . . . . . . . . . . . . . . . . . 74 . . 4 Robot Analysis Total 7 | . 2 1 1 . 2 . 1 . . . . . . . . . . . . . . . . . . . . Derelict Logs Recovered 9 | . . 1 . . . . . . . . . 1 . 2 1 . . . 2 1 . 1 . . . . . Drone Launches 4 | . . . . . . . . . . . . . . . . . . 1 . . . . 1 1 1 . . Drone Recoveries 4 | . . . . . . . . . . . . . . . . . . 1 . . . . 1 1 1 . . Zionite Intel Received 13 | . . . . . . . . . . . . . . . . . . 5 . . . . . 5 . . 3 Guard Positions 1 | . . . . . . . . . . . . . . . . . . 1 . . . . . . . . . Component Schematics 1 | . . . . . . . . . . . . . . . . . . . . . . . . 1 . . . Prototype Schematics 2 | . . . . . . . . . . . . . . . . . . 1 . . . . . 1 . . . Unaware Schematics 1 | . . . . . . . . . . . . . . . . . . . . . . . . 1 . . . Unaware Analyses 2 | . . . . . . . . . . . . . . . . . . 1 . . . . . . . . 1 Trap Installations 1 | . . . . . . . . . . . . . . . . . . . . . . . . . . . 1 Active Terminals 2 | . . . . . . . . . . . . . . . . . . 1 . . . . . 1 . . . Active Garrisons 1 | . . . . . . . . . . . . . . . . . . . . . . . . . . . 1 Depthwide Sectors/0 2 | . . . . . . . . . . . . . . . . . . 1 . . . . . 1 . . . Exploration | -11 -10 -10 -9 -9 -8 -8 -8 -8 -7 -7 -7 -7 -7 -7 -6 -6 -6 -6 -6 -6 -6 -5 -5 -5 -5 -5 -5 ------------- Run | Yrd Mat Min Mat Sto Mat Gar Mat Gar Fac Was Fac Low Low Zio Pro Fac Was Fac Low Low Dat Pro Fac Ext Cet Arc Hub Turns Passed 32554 | 128 634 887 1049 1710 2187 1253 1348 1257 1428 485 2152 1086 1196 1776 1887 865 81 2661 1247 872 99 837 447 1399 435 276 2872 Spaces Moved 17913 | 61 276 460 447 783 1021 605 607 622 795 309 1311 765 788 891 1125 453 65 1779 917 696 78 637 313 801 215 153 940 Core 56 | 4 . . . . . . . . . . . . . . . . . . . . . . . . . . 52 Treads 5478 | 57 276 460 447 783 1021 605 607 622 600 . . . . . . . . . . . . . . . . . . Legs 12370 | . . . . . . . . . 195 309 1311 765 788 891 1125 453 65 1779 917 696 78 637 313 801 215 153 879 Wheels . | . . . . . . . . . . . . . . . . . . . . . . . . . . . . Hover 9 | . . . . . . . . . . . . . . . . . . . . . . . . . . . 9 Flight . | . . . . . . . . . . . . . . . . . . . . . . . . . . . . Fastest Speed 50 | 50 160 160 160 160 155 166 158 153 122 122 127 133 130 127 125 124 126 120 120 120 120 120 120 120 120 120 50 Average Speed 139 | 152 160 160 160 160 155 166 160 158 139 125 131 133 132 192 152 125 126 123 120 120 120 120 120 120 120 120 115 Slowest Speed 237 | 160 160 160 160 160 166 166 166 237 151 130 133 133 200 200 196 126 126 126 120 120 120 120 120 120 120 120 183 Overloaded Moves . | . . . . . . . . . . . . . . . . . . . . . . . . . . . . Propulsion Burnouts . | . . . . . . . . . . . . . . . . . . . . . . . . . . . . Robots Hopped . | . . . . . . . . . . . . . . . . . . . . . . . . . . . . Potential Cave-ins 15 | . . . . . . . . . . 3 . . 12 . . . . . . . . . . . . . . Cave-ins Triggered 1 | . . . . . . . . . . . . . 1 . . . . . . . . . . . . . . Exploration Rate (%) 64 | 5 42 97 56 90 85 72 57 64 23 96 34 92 91 88 97 14 63 49 80 71 69 82 7 87 69 80 59 Regions Visited 27 Branch Regions 14 Pre-discovered Areas 21 | . 1 . . 1 . . . . . . . 1 . 2 . . . 6 . . 1 1 . 8 . . . Known Exits Taken 9 | . . . 1 . 1 . 1 . . . 1 1 . . 1 . . . . . . 1 . . 1 1 . Unknown Exits Taken 12 | 1 1 1 . 1 . . . . . . . . 1 1 . . . 1 1 1 1 . 1 1 . . . Scrap Searched 30 | . . 1 . . . . . . . . . 3 5 5 5 . . . 3 4 . 4 . . . . . Spaces Dug 225 | . . . . 12 22 23 1 2 2 5 10 30 8 . 13 . . 13 8 29 . 23 . 17 3 . 4 Terrain Destroyed 506 | . 21 2 37 58 22 23 15 2 6 5 10 30 24 . 19 . . 85 59 39 . 23 . 17 3 . 6 Melee 56 | . . . . 2 8 16 1 2 2 5 10 . 5 . . . . 2 . . . . . . 3 . . Projectile 30 | . . 2 . . . . . . . . . . 4 . 2 . . 13 2 . . 1 . . . . 6 AOE 410 | . 21 . 37 56 14 7 14 . 4 . . 30 13 . 17 . . 70 49 39 . 22 . 17 . . . Terrain Rammed . | . . . . . . . . . . . . . . . . . . . . . . . . . . . . Walls Destroyed . | . . . . . . . . . . . . . . . . . . . . . . . . . . . . Machines Disabled . | . . . . . . . . . . . . . . . . . . . . . . . . . . . . Actions | -11 -10 -10 -9 -9 -8 -8 -8 -8 -7 -7 -7 -7 -7 -7 -6 -6 -6 -6 -6 -6 -6 -5 -5 -5 -5 -5 -5 --------- Run | Yrd Mat Min Mat Sto Mat Gar Mat Gar Fac Was Fac Low Low Zio Pro Fac Was Fac Low Low Dat Pro Fac Ext Cet Arc Hub Total 23466 | 81 411 527 629 1053 1471 736 833 756 1041 374 1607 801 886 955 1267 646 64 2068 991 712 83 675 369 1196 344 242 2648 Wait 3428 | 1 51 20 41 82 273 55 112 37 140 39 164 13 33 40 98 112 . 65 14 . . . 13 259 75 68 1623 Move 17888 | 60 275 459 446 782 1020 604 607 621 795 308 1310 764 786 890 1124 453 64 1778 916 695 77 636 312 800 214 152 940 Hop . | . . . . . . . . . . . . . . . . . . . . . . . . . . . . Pick Up 164 | 6 21 3 12 11 11 . 3 4 13 5 10 1 8 7 5 4 . 14 . 1 . 6 7 4 3 1 4 Fast Attach 177 | 6 3 1 3 8 9 . 11 . 8 1 12 . 5 2 3 10 . 29 9 1 3 3 5 10 9 7 19 Attach 45 | . 1 1 3 2 2 . . . 2 4 3 . 2 3 1 3 . 3 1 . . 4 2 1 2 1 4 Detach 43 | . 1 1 1 2 1 . 1 . 1 . 3 . 1 3 1 2 . 7 1 . . 4 3 3 4 . 3 Swap 276 | . 6 7 19 34 24 13 8 9 17 2 15 10 10 3 10 1 . 24 9 5 . 3 14 17 7 2 7 Drop 279 | . 19 3 19 21 21 . 12 4 21 1 17 . 8 6 7 12 . 42 8 . 3 3 8 13 9 8 14 Fire 815 | 5 31 29 82 64 56 38 61 63 28 9 49 13 26 1 15 42 . 85 33 10 . 16 2 16 13 . 28 Melee 98 | . . . . 12 10 21 2 3 3 5 13 . 5 . 3 . . 5 . . . . 3 . 8 3 2 Ram . | . . . . . . . . . . . . . . . . . . . . . . . . . . . . Kick 38 | . . . . . . . . . 3 . 10 . . . . 7 . 13 . . . . . 1 . . 4 Crush 51 | 3 3 3 3 16 10 1 8 . 4 . . . . . . . . . . . . . . . . . . Escape Stasis 16 | . . . . 3 . 3 . 6 . . . . 1 . . . . 3 . . . . . . . . . Rewire 76 | . . . . . . 1 . 1 . . 1 . 1 . . . . . . . . . . 72 . . . Trap 48 | . . . . . 34 . 8 . 6 . . . . . . . . . . . . . . . . . . Miscellaneous 24 | . . . . 16 . . . 8 . . . . . . . . . . . . . . . . . . . Route ------- -11/Scrapyard -10/Materials -10/Mines (discovered 3 exits: *Mat x2 / [*Exi]) -9/Materials (discovered 3 exits: *Mat / *Min / *Sto) -9/Storage -8/Materials (discovered 3 exits: *Fac x2 / Gar) -8/Garrison (discovered 3 exits: *Mat x3) -8/Materials (discovered 2 exits: *Fac / Gar) -8/Garrison (discovered 2 exits: *Fac x2) -7/Factory (discovered 2 exits: *Low x2) -7/Waste -7/Factory (discovered 2 exits: *Low x2) -7/Lower Caves (discovered 2 exits: *Low / *Zio) -7/Lower Caves (discovered 2 exits: *Fac / *Zio) -7/Zion -6/Proximity Caves -6/Factory -6/Waste -6/Factory (discovered 3 exits: *Fac x2 / *Low) -6/Lower Caves -6/Lower Caves (discovered 2 exits: *Fac / *Dat) -6/Data Miner -5/Proximity Caves -5/Factory -5/Extension (discovered 2 exits: *Fac / *Cet) -5/Cetus (discovered 2 exits: *Fac / *Arc) -5/Archives (discovered 2 exits: *Fac / *Hub) -5/Hub_04(d) (discovered 1 exit: *Fac) History --------- Turn | Location | Event 7 | -11/Scrapyard | Discovered new exit (range 14) 129 | -11/Scrapyard | Entered Materials 308 | -10/Materials | Build established: Mutant 552 | -10/Materials | Discovered new exit (range 16) 763 | -10/Materials | Entered Mines 800 | -10/Mines | Assisted by bots powering up and referring to "LRC-V3" 914 | -10/Mines | A weapon hastily lodged in a ceiling crevice suddenly fell to the ground 1029 | -10/Mines | Found DCF Scrap (11 items) 1038 | -10/Mines | Discovered new exit (range 7) 1157 | -10/Mines | Deemed a non-threat by the Exiles lab entrance 1157 | -10/Mines | Discovered new exit (range 5) 1264 | -10/Mines | Learned Materials security intel 1314 | -10/Mines | Found the Drone Emporium 1325 | -10/Mines | Found Prototype Device 1325 | -10/Mines | Identified Sensor Drone Bay 1373 | -10/Mines | Excavation squad dispatched 1373 | -10/Mines | A large section of the Mines collapsed 1603 | -10/Mines | Discovered new exit (range 10) 1650 | -10/Mines | Entered Materials 1650 | -9/Materials | Accompanied by 2 allies 1650 | -9/Materials | Evolved 2 slots: Propulsion x1, Utility x1 2044 | -9/Materials | Build established: Scavenger-Mutant 2226 | -9/Materials | Discovered new exit (range 10) 2499 | -9/Materials | Discovered new exit (range 10) 2603 | -9/Materials | Identified exit to Mines 2603 | -9/Materials | Identified exit to Storage 2603 | -9/Materials | Central database locked down 2625 | -9/Materials | Discovered new exit (range 16) 2699 | -9/Materials | Entered Storage 2940 | -9/Storage | Garrison activated, responded to threat 2984 | -9/Storage | Destroyed 7 combat bots 3044 | -9/Storage | Met a pair of Derelict thieves 3517 | -9/Storage | Repaired Hrd. Light Armor Plating? 3736 | -9/Storage | Discovered new exit (range 15) 3983 | -9/Storage | Build established: Mutant 4409 | -9/Storage | Entered Materials 4409 | -8/Materials | Evolved 2 slots: Utility x1, Weapon x1 5154 | -8/Materials | Central database locked down 5331 | -8/Materials | Build established: Gunner 5835 | -8/Materials | Destroyed 7 combat bots 5835 | -8/Materials | Discovered new exit (range 14) 6270 | -8/Materials | Discovered new exit (range 10) 6534 | -8/Materials | Identified exit to Garrison 6591 | -8/Materials | Garrison activated, responded to threat 6596 | -8/Materials | Entered Garrison 6596 | -8/Garrison | Accompanied by 1 ally 6708 | -8/Garrison | Triggered checkpoint 6782 | -8/Garrison | Garrison Relay disabled 6846 | -8/Garrison | Triggered checkpoint 6850 | -8/Garrison | Triggered checkpoint 7024 | -8/Garrison | Triggered checkpoint 7067 | -8/Garrison | Garrison Relay disabled 7123 | -8/Garrison | Discovered new exit (range 12) 7315 | -8/Garrison | Discovered new exit (range 12) 7338 | -8/Garrison | Triggered checkpoint 7366 | -8/Garrison | Garrison Relay disabled 7800 | -8/Garrison | Discovered new exit (range 8) 7849 | -8/Garrison | Entered Materials 8217 | -8/Materials | Found Unknown Protection 8217 | -8/Materials | Identified Powered Armor 8221 | -8/Materials | Found Powered Armor 8225 | -8/Materials | Found Powered Armor 8681 | -8/Materials | Build established: Tank 9037 | -8/Materials | Found Powered Armor 9163 | -8/Materials | Discovered new exit (range 5) 9197 | -8/Materials | Identified exit to Garrison 9197 | -8/Materials | Entered Garrison 9335 | -8/Garrison | Triggered checkpoint 9386 | -8/Garrison | Rescued a captive Derelict 9387 | -8/Garrison | Rescued a captive Derelict 9518 | -8/Garrison | Core integrity fell below 50% 9523 | -8/Garrison | Build established: Gunner 9681 | -8/Garrison | Triggered checkpoint 9812 | -8/Garrison | Discovered new exit (range 12) 9901 | -8/Garrison | Triggered checkpoint 9952 | -8/Garrison | Garrison Relay disabled 10023 | -8/Garrison | Triggered checkpoint 10102 | -8/Garrison | Discovered new exit (range 15) 10285 | -8/Garrison | Triggered checkpoint 10330 | -8/Garrison | Garrison Relay disabled 10454 | -8/Garrison | Entered Factory 10454 | -7/Factory | Evolved 2 slots: Propulsion x1, Utility x1 11126 | -7/Factory | Build established: Tank 11284 | -7/Factory | Identified exit to Lower Caves 11882 | -7/Factory | Sucked down chute 11882 | -7/Factory | Entered Waste 11920 | -7/Waste | Spotted C-40 Crusher 11922 | -7/Waste | Spotted C-40 Crusher 11935 | -7/Waste | Spotted C-40 Crusher 11940 | -7/Waste | Spotted C-40 Crusher 11957 | -7/Waste | Spotted C-40 Crusher 11985 | -7/Waste | Spotted C-40 Crusher 12019 | -7/Waste | Crushed by Compactor (1 part destroyed, 2 dropped) 12022 | -7/Waste | Crushed by Compactor (1 part destroyed, 2 dropped) 12051 | -7/Waste | Discovered new exit (range 15) 12091 | -7/Waste | Warlord forces began an assault 12117 | -7/Waste | Allies destroyed C-40 Crusher 12122 | -7/Waste | Allies destroyed C-40 Crusher 12124 | -7/Waste | Allies destroyed C-40 Crusher 12137 | -7/Waste | Allies destroyed C-40 Crusher 12167 | -7/Waste | Lost 12 allies 12232 | -7/Waste | Destroyed C-40 Crusher 12307 | -7/Waste | Build established: Mutant 12367 | -7/Waste | Entered Factory 12367 | -7/Factory | Accompanied by 7 allies 12645 | -7/Factory | Discovered exit to Lower Caves (range 15) 13130 | -7/Factory | Discovered exit to Lower Caves (range 10) 13457 | -7/Factory | Build established: Tank 14084 | -7/Factory | Repaired Powered Armor 14519 | -7/Factory | Entered Lower Caves 14520 | -7/Lower Caves | Encountered a Warlord checkpoint 14527 | -7/Lower Caves | Met a Warlord Commander 14528 | -7/Lower Caves | Learned location of Warlord (-4) 14529 | -7/Lower Caves | Warlord Commander delivered Encrypted Comm Array 14531 | -7/Lower Caves | Found Encrypted Comm Array 14725 | -7/Lower Caves | Attracted the attention of an 0b10 checkpoint 14754 | -7/Lower Caves | Found DCF Scrap (12 items) 14868 | -7/Lower Caves | Learned 4 Factory zone layouts 15062 | -7/Lower Caves | Build established: Skirmisher 15168 | -7/Lower Caves | A Derelict revealed a hidden shortcut to a safe place 15251 | -7/Lower Caves | Discovered new exit (range 9) 15261 | -7/Lower Caves | Identified exit to Lower Caves 15605 | -7/Lower Caves | Entered another Lower Caves area 15606 | -7/Lower Caves | Encountered a Warlord checkpoint 15650 | -7/Lower Caves | Discovered new exit (range 10) 15704 | -7/Lower Caves | Crushed by falling debris 15726 | -7/Lower Caves | Found Prototype Special Weapon 15731 | -7/Lower Caves | Identified Mak. Laser Shovel 15780 | -7/Lower Caves | Spotted B-75 Beast 16032 | -7/Lower Caves | Build established: Tank 16556 | -7/Lower Caves | Discovered new exit (range 15) 16801 | -7/Lower Caves | Entered Zion 16847 | -7/Zion | System corruption cleaned by Quarantine Array 17025 | -7/Zion | Given A8's code to call for help 17077 | -7/Zion | Discovered new exit (range 13) 17170 | -7/Zion | Build established: Gunner 17233 | -7/Zion | Found CR-A16's Pointy Stick 17464 | -7/Zion | Given the Hacking Drone Bay 17464 | -7/Zion | Found Prototype Device 17465 | -7/Zion | Identified Hacking Drone Bay 17668 | -7/Zion | Enhanced Grunt warped into view, answering call for help 17669 | -7/Zion | Enhanced Grunt warped into view, answering call for help 17763 | -7/Zion | Learned location of 1 exit from Factory 17819 | -7/Zion | Learned Factory security intel 17897 | -7/Zion | Met Imprinter 17929 | -7/Zion | Imprinted 17931 | -7/Zion | Declared Zion's savior 18376 | -7/Zion | Found Prototype Device 18376 | -7/Zion | Identified Phasing AFG 18577 | -7/Zion | Entered Proximity Caves 18577 | -6/Proximity Caves | Accompanied by 6 allies 18661 | -6/Proximity Caves | Build established: Derelict-Gunner 19084 | -6/Proximity Caves | Received a Behemoth hack from an annoying Tinkerer 19162 | -6/Proximity Caves | Spotted B-75 Beast 19185 | -6/Proximity Caves | Destroyed B-75 Beast 19525 | -6/Proximity Caves | Identified exit to Factory 20464 | -6/Proximity Caves | Entered Factory 20464 | -6/Factory | Accompanied by 6 allies 20464 | -6/Factory | Evolved 2 slots: Power x1, Propulsion x1 20465 | -6/Factory | Identified exit to Factory 21134 | -6/Factory | Lost 3 allies 21329 | -6/Factory | Sucked down chute 21329 | -6/Factory | Entered Waste 21344 | -6/Waste | EMP discharged 21344 | -6/Waste | System corruption reached 10% 21355 | -6/Waste | Spotted C-40 Crusher 21356 | -6/Waste | Spotted C-40 Crusher 21357 | -6/Waste | Spotted C-40 Crusher 21363 | -6/Waste | Spotted C-40 Crusher 21385 | -6/Waste | Spotted C-40 Crusher 21391 | -6/Waste | Discovered new exit (range 16) 21410 | -6/Waste | Entered Factory 21435 | -6/Factory | Build established: Tank 21641 | -6/Factory | Retrieved Zion intel report: Guard Positions 21798 | -6/Factory | Retrieved Zion intel report: Depthwide Sectors/-6 21930 | -6/Factory | Retrieved Zion intel report: Prototype Schematics 21954 | -6/Factory | Retrieved Zion intel report: Unaware Analyses 22123 | -6/Factory | Discovered exit to Factory (range 15) 22323 | -6/Factory | Retrieved Zion intel report: Active Terminals 22324 | -6/Factory | Zion Recon squad teleported in 22339 | -6/Factory | Discovered exit to Factory (range 12) 22734 | -6/Factory | Fabricated G-50 Soldier? 22931 | -6/Factory | Terminal network hard line cut 22978 | -6/Factory | Spotted B-75 Beast 23622 | -6/Factory | Discovered new exit (range 15) 23960 | -6/Factory | Cargo convoy interrupted 24011 | -6/Factory | Destroyed 11 combat bots 24054 | -6/Factory | Found PL-3XN's Ring of Power 24071 | -6/Factory | Entered Lower Caves 24097 | -6/Lower Caves | Attacked by a faux Warlord 24260 | -6/Lower Caves | Build established: Gunner 24521 | -6/Lower Caves | Learned Factory stockpile data 25161 | -6/Lower Caves | Learned Factory terminal intel 25244 | -6/Lower Caves | Learned Armory trap positions 25259 | -6/Lower Caves | Discovered new exit (range 4) 25318 | -6/Lower Caves | Entered another Lower Caves area 25391 | -6/Lower Caves | Discovered exit to Factory (range 10) 25855 | -6/Lower Caves | Learned location of 1 exit from Proximity Caves 26069 | -6/Lower Caves | Discovered new exit (range 6) 26130 | -6/Lower Caves | Spotted B-75 Beast 26190 | -6/Lower Caves | Entered Data Miner 26190 | -6/Data Miner | Discovered new exit (range 6) 26215 | -6/Data Miner | Met Data Miner 26236 | -6/Data Miner | Learned location of Section 7 (-2) 26236 | -6/Data Miner | Acquired the access code to Warlord's prototype stash 26252 | -6/Data Miner | Received God Mode back door access code from Data Miner 26289 | -6/Data Miner | Entered Proximity Caves 26401 | -5/Proximity Caves | Attracted the attention of an 0b10 checkpoint 26825 | -5/Proximity Caves | Learned location of Armory (-4) 27126 | -5/Proximity Caves | Entered Factory 27126 | -5/Factory | Evolved 2 slots: Utility x1, Weapon x1 27128 | -5/Factory | Loaded intel: 28 terminal locations 27228 | -5/Factory | Spotted B-75 Beast 27243 | -5/Factory | Revealed the true nature of CR-A16's Pointy Stick 27247 | -5/Factory | Destroyed B-75 Beast 27477 | -5/Factory | Discovered new exit (range 12) 27521 | -5/Factory | Build established: Pyromaniac-Tank 27573 | -5/Factory | Entered Extension 27628 | -5/Extension | Rescued a captive Derelict 27631 | -5/Extension | Rescued a captive Derelict 27640 | -5/Extension | Zion Light squad teleported in 27650 | -5/Extension | Rescued A7 27685 | -5/Extension | Retrieved Zion intel report: Prototype Schematics 27686 | -5/Extension | Zion Offense Resupply teleported in 27691 | -5/Extension | Found Prototype Processor 27691 | -5/Extension | Identified Exp. Targeting Computer 27810 | -5/Extension | Retrieved Zion intel report: Unaware Schematics 27842 | -5/Extension | Retrieved Zion intel report: Depthwide Sectors/-5 27897 | -5/Extension | Rescued a captive Derelict 27898 | -5/Extension | Rescued a captive Derelict 28448 | -5/Extension | Spotted B-75 Beast 28460 | -5/Extension | Allies destroyed B-75 Beast 28460 | -5/Extension | Spotted B-75 Beast 28468 | -5/Extension | Allies destroyed B-75 Beast 28561 | -5/Extension | Rescued a captive Derelict 28561 | -5/Extension | Rescued a captive Derelict 28753 | -5/Extension | Retrieved Zion intel report: Active Terminals 28754 | -5/Extension | Zion Light squad teleported in 28840 | -5/Extension | Retrieved Zion intel report: Component Schematics 28885 | -5/Extension | Terminal network hard line cut 28902 | -5/Extension | Discovered new exit (range 10) 28903 | -5/Extension | Discovered new exit (range 6) 28952 | -5/Extension | Build established: Commander-Tank 28972 | -5/Extension | Entered Cetus 28972 | -5/Cetus | Accompanied by 22 allies (A7) 28977 | -5/Cetus | Acquired a Cetus Manufacturing Module code from A7 28987 | -5/Cetus | Spotted Cetus Guard 28988 | -5/Cetus | Spotted Cetus Guard 28990 | -5/Cetus | Spotted Cetus Guard 28991 | -5/Cetus | Spotted Cetus Guard 28995 | -5/Cetus | Allies destroyed Cetus Guard 29003 | -5/Cetus | Destroyed Cetus Guard 29008 | -5/Cetus | Allies destroyed Cetus Guard 29009 | -5/Cetus | Allies destroyed Cetus Guard 29032 | -5/Cetus | Found Prototype Protection 29032 | -5/Cetus | Identified Zio. Weapon Casing 29038 | -5/Cetus | Lost 4 allies 29093 | -5/Cetus | Started Cetus Manufacturing Module 29115 | -5/Cetus | Escorted A7 to Cetus Mainframe 29118 | -5/Cetus | Manufactured an Enhanced Grunt 29136 | -5/Cetus | Discovered new exit (range 15) 29143 | -5/Cetus | Manufactured an Enhanced Grunt 29158 | -5/Cetus | Spotted Cetus Guard 29158 | -5/Cetus | Spotted Cetus Guard 29160 | -5/Cetus | Spotted Cetus Guard 29161 | -5/Cetus | Spotted Cetus Guard 29165 | -5/Cetus | Destroyed Cetus Guard 29168 | -5/Cetus | Manufactured an Enhanced Grunt 29180 | -5/Cetus | Allies destroyed Cetus Guard 29183 | -5/Cetus | Destroyed Cetus Guard 29186 | -5/Cetus | Allies destroyed Cetus Guard 29193 | -5/Cetus | Manufactured an Enhanced Grunt 29196 | -5/Cetus | Discovered new exit (range 15) 29202 | -5/Cetus | Scared off Revision 17 29218 | -5/Cetus | Manufactured an Enhanced Grunt 29221 | -5/Cetus | Lost 4 allies 29293 | -5/Cetus | Murdered A7 29298 | -5/Cetus | Found Prototype Protection 29298 | -5/Cetus | Identified Med. Regenerative Plating 29320 | -5/Cetus | Identified exit to Archives 29387 | -5/Cetus | Extracted ID and sensor layout for unrecognized location from A7's data core 29407 | -5/Cetus | Entered Archives 29407 | -5/Archives | Accompanied by 18 allies 29476 | -5/Archives | Found Prototype Device 29476 | -5/Archives | Identified Exp. Thermal Shield 29484 | -5/Archives | Lost 4 allies 29528 | -5/Archives | Discovered new exit (range 15) 29593 | -5/Archives | Discovered new exit (range 16) 29649 | -5/Archives | Identified exit to Hub_04(d) 29683 | -5/Archives | Entered Hub_04(d) 29683 | -5/Hub_04(d) | Accompanied by 12 allies 29761 | -5/Hub_04(d) | Retrieved Zion intel report: Active Garrisons 29877 | -5/Hub_04(d) | Retrieved Zion intel report: Trap Installations 29878 | -5/Hub_04(d) | Zion Hacker squad teleported in 29895 | -5/Hub_04(d) | Discovered new exit (range 3) 29901 | -5/Hub_04(d) | Identified exit to Factory 30205 | -5/Hub_04(d) | Retrieved Zion intel report: Unaware Analyses 30883 | -5/Hub_04(d) | First assault squad dispatched 31004 | -5/Hub_04(d) | Terminal network hard line cut 31006 | -5/Hub_04(d) | Lost 7 allies 31230 | -5/Hub_04(d) | Build established: Scavenger-Tank 32130 | -5/Hub_04(d) | Network Hub disabled 32368 | -5/Hub_04(d) | Network Hub disabled 32449 | -5/Hub_04(d) | Spotted B-75 Beast 32482 | -5/Hub_04(d) | Spotted Lightning 32482 | -5/Hub_04(d) | Spotted Lightning 32482 | -5/Hub_04(d) | Spotted Lightning 32494 | -5/Hub_04(d) | Network Hub disabled 32496 | -5/Hub_04(d) | System corruption reached 10% 32507 | -5/Hub_04(d) | Core integrity fell below 50% 32512 | -5/Hub_04(d) | Core integrity fell below 20% 32513 | -5/Hub_04(d) | Incoming assault squad redirected 32516 | -5/Hub_04(d) | Incoming assault squad redirected 32542 | -5/Hub_04(d) | Lost 11 parts (1p4n2u4w) 32555 | -5/Hub_04(d) | Destroyed by G-67 Veteran with Plasma Rifle Last Messages --------------- 32508_ Exp. Heat Sink destroyed. 32508_ Penetrated by EMDS Slug. 32508_ Critical hit (Burn: +37). 32510_ EMDS Slug penetrates Wall. 32511_ Imp. Coolant Injector destroyed. 32511_ Knocked back. 32513_ ALERT: Higher priority target reported, redirecting assault. 32522_ System corrupted: Matter fused (-5). 32528_ Acquired Imp. System Shield. 32532_ Acquired Adv. Hacking Suite. 32535_ Acquired Cmb. Gravmag System. 32541_ System corrupted: IFF burst signal emitted. 32545_ Acquired Mic. Fission Core. 32547_ Acquired Cmb. Gravmag System. 32548_ Critical hit (Burn: +50). 32549_ Acquired Cmb. Gravmag System. 32550_ EMDS Slug penetrates Wall. 32551_ Acquired Cmb. Gravmag System. 32553_ Penetrated by EMDS Slug. Map ----- +----------------------------------------------------+ | # # ##########+##?????????????????????????? | | # " # ## " #???????????#####???? | | # " + + " #??????????## """#### | | " " "" # ## " ???????????##""" | | # "" ########/## #???????????????#" | | # " T" ## #?? #???????????????#" | | # " "" ## ""#???????????????????#" | | # " "" ## """ ""#????????????H????#?#" | | [" ## T"#?????????????????# #"/ | | ""######### """ ""#????????????? ??# #" | | #???????# ""#???????????? #??# " | | #???????# """ # ??????????? #???##" | | #???????# | # ?????????? #???# " % | | ###???????########## ???????# #???# " | | #######????????????# #??????# #???# " | | #????????????# #??????# #???### | | " " " #????????????# #??????# #?#####/##/##### | | " " #????????????# #??????+ #?# + | | " " #????????????+ #??????# #?# " " # | | #????????????# #??????# #?# " " ## " | | " " " #????????????# ###+#### #?# " " ## " | | " " #????????????# ^ #?# ## | | " #????????????#^ ^ #?# ##! | | % #????????????#^ #?# ## | | ##+####????????????# [! * ### ## | | ############### ! @ #######+## | | % * !% kk gg B | | < % g B | | k kgh | | ############+############ l | | ## ###????????? ?????????##################### | | ?# #????????? ???????????????????????????? | | ?# #???????# """" """" #?????????????????????????? | | ?# #???????# """" """" #?????????????????????????? | | ?# #???????# """" """" #?????????????????????????? | | ##+#######?# """" """" #?????????????????????????? | | #?#??? ???#?????????????????????????? | | """ """ #?###??###??????????????????????????????? | | #? ???????????????????????????????????? | | """ """ +? ???????????????????????????????????? | | #? ???????????????????????????????????? | | """ """ #?# #??####?????????????????????????????? | | #?# #? #?????????????????????????????? | | #?# #?" " #?????????????????????????????? | | ######/###?# # " " #?????????????????????????????? | | ?# #### # " " #?????????????????????????????? | | ?# """ + + #?????????????????????????????? | | ?# # # " " #?????????????????????????????? | | ?# """ # # " " #?????????????????????????????? | | ?# # #?" " #?????????????????????????????? | +----------------------------------------------------+ Best States ------------- Heat Dissipation 94 Coolant Potential 80 Energy Generation 32 Energy Capacity 515 Matter Stores 300 Matter Capacity 300 Sight Range 16 Robot Scan Range 16 Terrain Scan Density 10 Jamming Range 14 Corruption Containment 8 Armor Coverage 850 Evasion (%) 70 Targeting Accuracy 12 Armor Integrity Analysis 30 Recoil Reduction 4 Offensive Hacking 28 Defensive Hacking 12 Item Schematics ----------------- Adv. Treads | -8/Materials | Scanalyzed Imp. Cooling System | -8/Materials | Scanalyzed Cld. Ion Engine | -8/Materials | Scanalyzed Plasma Cutter | -8/Materials | Scanalyzed Imp. Carbon-fiber Leg | -7/Factory | Scanalyzed Enh. Nuclear Core | -7/Factory | Hacked Powered Hammer | -7/Zion | Archive Coil Gun | -7/Zion | Archive Hvy. Rocket Launcher | -7/Zion | Archive Magnetic Acceleration Cannon | -7/Zion | Archive Imp. EM Pulse Cannon | -7/Zion | Archive Lgt. Fission Core | -7/Zion | Archive Recalibrator | -7/Zion | Archive Hvy. Phase Cannon | -7/Zion | Archive Wave Gun | -7/Zion | Archive Hvy. Ion Cannon | -7/Zion | Archive Hvy. Machine Gun | -7/Zion | Archive Focal Shield | -7/Zion | Archive Greatsword | -7/Zion | Archive EM Disruption Field | -7/Zion | Archive HERF Cannon | -7/Zion | Archive Prc. Assault Rifle | -6/Factory | Z-intel Cld. Pulse Rifle | -6/Factory | Z-intel Com. Ion Cannon | -6/Factory | Z-intel Hvy. EM Shotgun | -6/Factory | Z-intel Enh. Autogun | -6/Factory | Z-intel Rocket Array | -6/Factory | Z-intel Imp. VTOL Module | -6/Factory | Z-intel F-cell Engine | -6/Factory | Z-intel Combat Drone Bay | -6/Data Miner | Free Lgt. Regenerative Plating | -6/Data Miner | Free Enh. Armored Leg | -6/Data Miner | Free Prc. Matter Filter | -6/Data Miner | Free Cld. Plasma Rifle | -6/Data Miner | Free Impulse Thruster | -6/Data Miner | Free Adv. Particle Charger | -6/Data Miner | Free Phase Gun | -6/Data Miner | Free Imp. Lightning Gun | -5/Extension | Z-intel Tiamat Missile Launcher | -5/Extension | Z-intel Force Rifle | -5/Extension | Z-intel Kinetic Spear | -5/Extension | Z-intel Imp. Heavy Laser | -5/Extension | Z-intel Prc. Shock Rifle | -5/Extension | Z-intel Cold Fusion Reactor | -5/Extension | Z-intel Prc. Rocket Launcher | -5/Extension | Z-intel Lgt. Neutrino Core | -5/Extension | Z-intel Matter Filter | -5/Extension | Z-intel Imp. Gravmag System | -5/Extension | Z-intel Fusion Compressor | -5/Extension | Z-intel Force Field | -5/Extension | Z-intel Imp. Remote Datajack | -5/Extension | Z-intel Hacking Suite | -5/Extension | Z-intel Adv. Sensor Array | -5/Extension | Z-intel Transmission Jammer | -5/Extension | Z-intel Field Propulsion Drive | -5/Extension | Z-intel Huge Storage Unit | -5/Extension | Z-intel Imp. Trap Scanner | -5/Extension | Z-intel Imp. Reaction Control System | -5/Extension | Z-intel Imp. Transmission Jammer | -5/Extension | Z-intel Hvy. Shock Bomb Launcher | -5/Extension | Z-intel Great Maul | -5/Extension | Z-intel Robot Schematics ------------------ G-47 Trooper | -7/Zion | Archive I-36 Angel | -7/Zion | Archive G-50 Soldier | -6/Data Miner | Free M-22 Extractor | -6/Data Miner | Free B-48 Gladiator | -6/Data Miner | Free B-60 Warrior | -6/Data Miner | Free O-32 Director | -6/Data Miner | Free Y-64 Sentinel | -5/Extension | Z-intel R-10 Processor | -5/Extension | Z-intel T-07 Excavator | -5/Extension | Z-intel K-01 Serf | -5/Extension | Z-intel A-15 Conveyor | -5/Extension | Z-intel Fabricated ------------ G-50 Soldier | x3 | -6/Factory | Preloaded Repaired ---------- Hrd. Light Armor Plating | 28% | -9/Storage Powered Armor | 36% | -7/Factory Alien Tech Used ----------------- None Achievements -------------- None Challenges ------------ None Game ------ Seed CobblerCatalystDrivehammer Manual? 0 Play Time 03:00:37 Cumulative 1888.5 hours Start 2025.07.09 @ 02:45:51 End 2025.07.10 @ 01:21:16 Sessions 5 Manual Loads 0 Difficulty Rogue Special Mode None Game No. 1249 Rogue 1245 Adventurer 4 Explorer 0 Win Type - Total 244 Types 182/12/19/10/3/1/4/8/4/1 Lore% 98 Gallery% 94 Achievement% 98 Wizard Run 0 Options --------- Layout 2 ASCII 0 Keyboard 1 Movement Vi Keybinds 0 Fullscreen 0 Font 24/Terminus Map View 59x48 Zoom Use 0% Tactical HUD 1 Map Filters NONE Filters NONE Steam 1 RUN: 2dda6a20-9dc7-466a-b4a5-bebf9389296e